fUST/lending_fUST_20260519
["ID","MTS","AMOUNT","RATE_DAILY","PERIOD"]
[422633922,1779186632000,-229.95671552,8.98e-05,2]
[422633924,1779186632000,-300.0,9.522e-05,2]
[422633926,1779186632000,-500.0,9.523e-05,2]
[422633928,1779186632000,-500.0,9.523e-05,2]
[422633930,1779186632000,-500.0,9.523e-05,2]
[422633932,1779186632000,-432.90073873,9.523e-05,2]
[422633938,1779186632000,-151.5,9.524e-05,2]
[422633921,1779186632000,-937.5470903,8.798e-05,2]
[422633942,1779186632000,-151.5,9.524e-05,2]
[422633940,1779186632000,-151.5,9.524e-05,2]
[422633944,1779186632000,-203.77161685,9.524e-05,2]
[422633946,1779186632000,-10824.30809527,9.793e-05,2]
[422633949,1779186632000,-2575.47473491,9.793e-05,2]
[422633934,1779186632000,-151.5,9.524e-05,2]
[422633936,1779186632000,-151.5,9.524e-05,2]
[422634167,1779186638000,-500.0,9.792e-05,2]
[422634168,1779186638000,-14256.56778394,9.793e-05,2]
[422634169,1779186638000,-51197.0072969,9.793e-05,2]
[422634512,1779186643000,-500.0,9.796e-05,2]
[422634509,1779186643000,-1217.7,9.796e-05,2]
[422634511,1779186643000,-500.0,9.796e-05,2]
[422634510,1779186643000,-528.28,9.796e-05,2]
[422634508,1779186643000,-503.13,9.796e-05,2]
[422634505,1779186643000,-500.0,9.796e-05,2]
[422634507,1779186643000,-166.76412479,9.796e-05,2]
[422634504,1779186643000,-500.0,9.796e-05,2]
[422634506,1779186643000,-500.0,9.796e-05,2]
[422634503,1779186643000,-500.0,9.796e-05,2]
[422634501,1779186643000,-680.28,9.796e-05,2]
[422634498,1779186643000,-500.0,9.796e-05,2]
[422634500,1779186643000,-500.0,9.796e-05,2]
[422634499,1779186643000,-500.0,9.796e-05,2]
[422634496,1779186643000,-915.14,9.796e-05,2]
[422634495,1779186643000,-500.0,9.796e-05,2]
[422634497,1779186643000,-522.45,9.796e-05,2]
[422634493,1779186643000,-500.0,9.794e-05,2]
[422634492,1779186643000,-21146.64208898,9.793e-05,2]
[422634494,1779186643000,-500.0,9.796e-05,2]
[422634502,1779186643000,-500.0,9.796e-05,2]
[422634519,1779186643000,-500.0,9.797e-05,2]
[422634515,1779186643000,-501.99497339,9.797e-05,2]
[422634521,1779186643000,-500.0,9.797e-05,2]
[422634537,1779186643000,-500.0,9.797e-05,2]
[422634534,1779186643000,-500.0,9.797e-05,2]
[422634535,1779186643000,-500.0,9.797e-05,2]
[422634532,1779186643000,-500.0,9.797e-05,2]
[422634528,1779186643000,-500.0,9.797e-05,2]
[422634536,1779186643000,-500.0,9.797e-05,2]
[422634531,1779186643000,-500.0,9.797e-05,2]
[422634520,1779186643000,-575.28055266,9.797e-05,2]
[422634533,1779186643000,-500.0,9.797e-05,2]
[422634529,1779186643000,-500.0,9.797e-05,2]
[422634526,1779186643000,-500.0,9.797e-05,2]
[422634527,1779186643000,-500.0,9.797e-05,2]
[422634522,1779186643000,-500.0,9.797e-05,2]
[422634530,1779186643000,-500.0,9.797e-05,2]
[422634513,1779186643000,-500.0,9.796e-05,2]
[422634514,1779186643000,-500.0,9.797e-05,2]
[422634516,1779186643000,-500.0,9.797e-05,2]
[422634523,1779186643000,-500.0,9.797e-05,2]
[422634524,1779186643000,-500.0,9.797e-05,2]
[422634525,1779186643000,-500.0,9.797e-05,2]
[422634517,1779186643000,-500.0,9.797e-05,2]
[422634518,1779186643000,-500.0,9.797e-05,2]
[422634541,1779186644000,-314.24508133,9.797e-05,2]
[422634539,1779186644000,-500.0,9.797e-05,2]
[422634540,1779186644000,-500.0,9.797e-05,2]
[422634538,1779186644000,-500.0,9.797e-05,2]
[422634576,1779186646000,-500.0,9.797e-05,2]
[422634580,1779186646000,-500.0,9.797e-05,2]
[422634574,1779186646000,-444.11363284,9.797e-05,2]
[422634578,1779186646000,-500.0,9.797e-05,2]
[422634570,1779186646000,-342.68247485,9.797e-05,2]
[422634566,1779186646000,-500.0,9.796e-05,2]
[422634568,1779186646000,-84.51682939,9.797e-05,2]
[422634572,1779186646000,-157.31752515,9.797e-05,2]
[422634584,1779186646000,-500.0,9.797e-05,2]
[422634597,1779186646000,-500.0,9.797e-05,2]
[422634586,1779186646000,-500.0,9.797e-05,2]
[422634590,1779186646000,-500.0,9.797e-05,2]
[422634592,1779186646000,-500.0,9.797e-05,2]
[422634582,1779186646000,-500.0,9.797e-05,2]
[422634594,1779186646000,-500.0,9.797e-05,2]
[422634595,1779186646000,-500.0,9.797e-05,2]
[422634603,1779186646000,-381.02060268,9.797e-05,2]
[422634599,1779186646000,-1265.96,9.797e-05,2]
[422634600,1779186646000,-897.13,9.797e-05,2]
[422634588,1779186646000,-500.0,9.797e-05,2]
[422634613,1779186647000,-500.0,9.797e-05,2]
[422634617,1779186647000,-500.0,9.797e-05,2]
[422634619,1779186647000,-500.0,9.797e-05,2]
[422634621,1779186647000,-500.0,9.797e-05,2]
[422634627,1779186647000,-1032.96,9.797e-05,2]
[422634630,1779186647000,-500.0,9.797e-05,2]
[422634622,1779186647000,-218.19238237,9.797e-05,2]
[422634615,1779186647000,-500.0,9.797e-05,2]
[422634620,1779186647000,-500.0,9.797e-05,2]
[422634618,1779186647000,-1199.25,9.797e-05,2]
[422634611,1779186647000,-7646.21,9.797e-05,2]
[422634616,1779186647000,-500.0,9.797e-05,2]
[422634612,1779186647000,-1477.61,9.797e-05,2]
[422634624,1779186647000,-28.06508573,9.797e-05,2]
[422634608,1779186647000,-500.0,9.797e-05,2]
[422634610,1779186647000,-677.41,9.797e-05,2]
[422634609,1779186647000,-500.0,9.797e-05,2]
[422634607,1779186647000,-500.0,9.797e-05,2]
[422634606,1779186647000,-500.0,9.797e-05,2]
[422634604,1779186647000,-118.97939732,9.797e-05,2]
[422634605,1779186647000,-500.0,9.797e-05,2]
[422634614,1779186647000,-500.0,9.797e-05,2]
[422634626,1779186647000,-500.0,9.797e-05,2]
[422634623,1779186647000,-253.7425319,9.797e-05,2]
[422634629,1779186647000,-500.0,9.797e-05,2]
[422634651,1779186647000,-79.78698434,9.798e-05,2]
[422634650,1779186647000,-500.0,9.798e-05,2]
[422634649,1779186647000,-500.0,9.798e-05,2]
[422634625,1779186647000,-500.0,9.797e-05,2]
[422634648,1779186647000,-500.0,9.798e-05,2]
[422634646,1779186647000,-500.0,9.798e-05,2]
[422634647,1779186647000,-500.0,9.798e-05,2]
[422634644,1779186647000,-500.0,9.798e-05,2]
[422634640,1779186647000,-500.0,9.798e-05,2]
[422634639,1779186647000,-444.45257057,9.798e-05,2]
[422634636,1779186647000,-500.0,9.798e-05,2]
[422634645,1779186647000,-500.0,9.798e-05,2]
[422634642,1779186647000,-500.0,9.798e-05,2]
[422634637,1779186647000,-500.0,9.798e-05,2]
[422634641,1779186647000,-500.0,9.798e-05,2]
[422634635,1779186647000,-500.0,9.798e-05,2]
[422634634,1779186647000,-500.0,9.798e-05,2]
[422634633,1779186647000,-482.86119145,9.798e-05,2]
[422634643,1779186647000,-500.0,9.798e-05,2]
[422634632,1779186647000,-500.0,9.797e-05,2]
[422634631,1779186647000,-500.0,9.797e-05,2]
[422634628,1779186647000,-725.0291,9.797e-05,2]
[422634638,1779186647000,-500.0,9.798e-05,2]
[422634658,1779186681000,152.0,0.00015,30]
[422634659,1779186692000,-500.0,9.794e-05,2]
[422634660,1779186692000,152.0,0.00015,30]
[422634661,1779186702000,152.0,0.00015017,30]
[422634671,1779186788000,152.0,0.00015017,30]
[422634673,1779186801000,282.0,0.00015879,30]
[422634676,1779186886000,163.076488,4.486e-05,2]
[422634688,1779187711000,152.0,0.00015896,30]
[422634690,1779187746000,160.0,0.00016,30]
[422634692,1779187761000,152.0,0.00015896,30]
[422634694,1779187790000,160.0,0.00016,30]
[422634708,1779187832000,-86.90717996,9.789e-05,2]
[422634706,1779187832000,-152.0,9.201e-05,2]
[422634702,1779187832000,-152.0,9.178e-05,2]
[422634704,1779187832000,-234.72789151,9.19e-05,2]
[422634715,1779187832000,-212.88591268,9.789e-05,2]
[422634713,1779187832000,-213.09282004,9.789e-05,2]
[422634727,1779187832000,-607.90234751,9.79e-05,2]
[422634721,1779187832000,-500.0,9.79e-05,2]
[422634723,1779187832000,-500.0,9.79e-05,2]
[422634719,1779187832000,-500.0,9.789e-05,2]
[422634725,1779187832000,-500.0,9.79e-05,2]
[422634717,1779187832000,-987.11408732,9.789e-05,2]
[422634975,1779187840000,-9.56733007,9.79e-05,2]
[422634977,1779187840000,-500.0,9.79e-05,2]
[422634979,1779187840000,-500.0,9.79e-05,2]
[422634973,1779187840000,-500.0,9.789e-05,2]
[422634971,1779187840000,-500.0,9.789e-05,2]
[422634983,1779187840000,-500.0,9.79e-05,2]
[422634988,1779187840000,-500.0,9.79e-05,2]
[422634986,1779187840000,-500.0,9.79e-05,2]
[422634982,1779187840000,-500.0,9.79e-05,2]
[422635005,1779187841000,-500.0,9.79e-05,2]
[422634990,1779187841000,-500.0,9.79e-05,2]
[422634992,1779187841000,-500.0,9.79e-05,2]
[422634994,1779187841000,-500.0,9.79e-05,2]
[422635004,1779187841000,-367.58353759,9.79e-05,2]
[422634996,1779187841000,-500.0,9.79e-05,2]
[422635009,1779187841000,-466.36646241,9.79e-05,2]
[422635007,1779187841000,-859.75,9.79e-05,2]
[422634999,1779187841000,-500.0,9.79e-05,2]
[422635001,1779187841000,-845.62646241,9.79e-05,2]
[422635097,1779187841000,-33.63353759,9.79e-05,2]
[422635100,1779187841000,-331.87633599,9.79e-05,2]
[422635107,1779187841000,-168.12366401,9.79e-05,2]
[422635109,1779187841000,-500.0,9.79e-05,2]
[422635113,1779187841000,-5705.4776583,9.79e-05,2]
[422634998,1779187841000,-500.0,9.79e-05,2]
[422635111,1779187841000,-500.0,9.79e-05,2]
[422635159,1779187842000,-500.0,9.79e-05,2]
[422635155,1779187842000,-500.0,9.79e-05,2]
[422635157,1779187842000,-1149.28,9.79e-05,2]
[422635147,1779187842000,-500.0,9.79e-05,2]
[422635149,1779187842000,-445.96869922,9.79e-05,2]
[422635139,1779187842000,-500.68,9.79e-05,2]
[422635135,1779187842000,-500.0,9.79e-05,2]
[422635133,1779187842000,-500.0,9.79e-05,2]
[422635136,1779187842000,-877.01,9.79e-05,2]
[422635143,1779187842000,-500.0,9.79e-05,2]
[422635131,1779187842000,-501.40073097,9.79e-05,2]
[422635129,1779187842000,-649.18,9.79e-05,2]
[422635127,1779187842000,-1416.04,9.79e-05,2]
[422635125,1779187842000,-1622.1423417,9.79e-05,2]
[422635145,1779187842000,-500.0,9.79e-05,2]
[422635169,1779187842000,-501.38718463,9.79e-05,2]
[422635181,1779187842000,-239.97425865,9.79e-05,2]
[422635173,1779187842000,-505.84481343,9.79e-05,2]
[422635191,1779187842000,-989.92,9.79e-05,2]
[422635187,1779187842000,-500.0,9.79e-05,2]
[422635171,1779187842000,-500.0,9.79e-05,2]
[422635189,1779187842000,-500.0,9.79e-05,2]
[422635183,1779187842000,-500.0,9.79e-05,2]
[422635194,1779187842000,-500.0,9.79e-05,2]
[422635196,1779187842000,-1046.02096067,9.79e-05,2]
[422635185,1779187842000,-500.0,9.79e-05,2]
[422635179,1779187842000,-260.02574135,9.79e-05,2]
[422635165,1779187842000,-651.94,9.79e-05,2]
[422635167,1779187842000,-500.92115628,9.79e-05,2]
[422635163,1779187842000,-501.36278766,9.79e-05,2]
[422635161,1779187842000,-500.0,9.79e-05,2]
[422635177,1779187842000,-500.0,9.79e-05,2]
[422635175,1779187842000,-500.0,9.79e-05,2]
[422635193,1779187842000,-500.0,9.79e-05,2]
[422635399,1779187844000,-500.0,9.79e-05,2]
[422635397,1779187844000,-500.0,9.79e-05,2]
[422635391,1779187844000,-380.58633967,9.79e-05,2]
[422635387,1779187844000,-506.27,9.79e-05,2]
[422635389,1779187844000,-119.41366033,9.79e-05,2]
[422635393,1779187844000,-500.0,9.79e-05,2]
[422635395,1779187844000,-501.16551543,9.79e-05,2]
[422635385,1779187844000,-500.0,9.79e-05,2]
[422635405,1779187844000,-500.0,9.79e-05,2]
[422635383,1779187844000,-120.93903933,9.79e-05,2]
[422635401,1779187844000,-500.0,9.79e-05,2]
[422635428,1779187844000,-339.82968925,9.791e-05,2]
[422635406,1779187844000,-500.0,9.791e-05,2]
[422635426,1779187844000,-420.86718836,9.791e-05,2]
[422635422,1779187844000,-500.0,9.791e-05,2]
[422635424,1779187844000,-79.13281164,9.791e-05,2]
[422635420,1779187844000,-500.0,9.791e-05,2]
[422635416,1779187844000,-500.0,9.791e-05,2]
[422635403,1779187844000,-500.0,9.79e-05,2]
[422635412,1779187844000,-500.0,9.791e-05,2]
[422635418,1779187844000,-500.0,9.791e-05,2]
[422635410,1779187844000,-500.0,9.791e-05,2]
[422635408,1779187844000,-500.0,9.791e-05,2]
[422635414,1779187844000,-501.31782517,9.791e-05,2]
[422635548,1779187847000,-500.0,9.791e-05,2]
[422635549,1779187847000,-725.0291,9.791e-05,2]
[422635551,1779187847000,-500.0,9.791e-05,2]
[422635556,1779187847000,-501.56083815,9.792e-05,2]
[422635558,1779187847000,-500.0,9.792e-05,2]
[422635557,1779187847000,-500.0,9.792e-05,2]
[422635567,1779187847000,-500.0,9.792e-05,2]
[422635559,1779187847000,-500.0,9.792e-05,2]
[422635561,1779187847000,-500.0,9.792e-05,2]
[422635563,1779187847000,-500.0,9.792e-05,2]
[422635566,1779187847000,-500.0,9.792e-05,2]
[422635565,1779187847000,-500.0,9.792e-05,2]
[422635550,1779187847000,-500.0,9.791e-05,2]
[422635560,1779187847000,-500.0,9.792e-05,2]
[422635562,1779187847000,-500.0,9.792e-05,2]
[422635569,1779187847000,-500.0,9.792e-05,2]
[422635577,1779187847000,-500.0,9.792e-05,2]
[422635578,1779187847000,-500.0,9.792e-05,2]
[422635580,1779187847000,-500.0,9.794e-05,2]
[422635579,1779187847000,-500.0,9.792e-05,2]
[422635571,1779187847000,-500.0,9.792e-05,2]
[422635564,1779187847000,-500.0,9.792e-05,2]
[422635546,1779187847000,-500.0,9.791e-05,2]
[422635547,1779187847000,-500.89131013,9.791e-05,2]
[422635568,1779187847000,-500.0,9.792e-05,2]
[422635527,1779187847000,-500.0,9.789e-05,2]
[422635529,1779187847000,-500.0,9.791e-05,2]
[422635528,1779187847000,-160.17031075,9.791e-05,2]
[422635530,1779187847000,-501.29874819,9.791e-05,2]
[422635531,1779187847000,-501.67778628,9.791e-05,2]
[422635532,1779187847000,-500.0,9.791e-05,2]
[422635542,1779187847000,-500.80288963,9.791e-05,2]
[422635534,1779187847000,-500.0,9.791e-05,2]
[422635538,1779187847000,-500.0,9.791e-05,2]
[422635540,1779187847000,-500.0,9.791e-05,2]
[422635536,1779187847000,-500.0,9.791e-05,2]
[422635539,1779187847000,-500.0,9.791e-05,2]
[422635533,1779187847000,-500.0,9.791e-05,2]
[422635541,1779187847000,-500.0,9.791e-05,2]
[422635535,1779187847000,-501.77581309,9.791e-05,2]
[422635554,1779187847000,-500.0,9.791e-05,2]
[422635544,1779187847000,-500.0,9.791e-05,2]
[422635555,1779187847000,-500.0,9.791e-05,2]
[422635553,1779187847000,-500.0,9.791e-05,2]
[422635543,1779187847000,-500.0,9.791e-05,2]
[422635552,1779187847000,-500.0,9.791e-05,2]
[422635545,1779187847000,-500.0,9.791e-05,2]
[422635570,1779187847000,-500.0,9.792e-05,2]
[422635537,1779187847000,-500.0,9.791e-05,2]
[422635573,1779187847000,-500.0,9.792e-05,2]
[422635600,1779187847000,-500.0,0.00010061,2]
[422635603,1779187847000,-500.0,0.00010061,2]
[422635605,1779187847000,-500.0,0.00010061,2]
[422635604,1779187847000,-500.0,0.00010061,2]
[422635609,1779187847000,-500.0,0.00010061,2]
[422635612,1779187847000,-500.0,0.00010061,2]
[422635624,1779187847000,-500.0,0.00010061,2]
[422635611,1779187847000,-500.0,0.00010061,2]
[422635613,1779187847000,-500.0,0.00010061,2]
[422635614,1779187847000,-500.0,0.00010061,2]
[422635616,1779187847000,-500.0,0.00010061,2]
[422635615,1779187847000,-500.0,0.00010061,2]
[422635618,1779187847000,-500.0,0.00010061,2]
[422635617,1779187847000,-500.0,0.00010061,2]
[422635621,1779187847000,-500.0,0.00010061,2]
[422635622,1779187847000,-500.0,0.00010061,2]
[422635623,1779187847000,-500.0,0.00010061,2]
[422635619,1779187847000,-500.0,0.00010061,2]
[422635620,1779187847000,-500.0,0.00010061,2]
[422635610,1779187847000,-500.0,0.00010061,2]
[422635625,1779187847000,-500.0,0.00010061,2]
[422635602,1779187847000,-500.0,0.00010061,2]
[422635599,1779187847000,-500.0,0.00010061,2]
[422635601,1779187847000,-500.0,0.00010061,2]
[422635598,1779187847000,-379.45535758,0.00010061,2]
[422635576,1779187847000,-500.0,9.792e-05,2]
[422635574,1779187847000,-500.0,9.792e-05,2]
[422635572,1779187847000,-500.0,9.792e-05,2]
[422635581,1779187847000,-500.0,9.794e-05,2]
[422635584,1779187847000,-500.0,9.794e-05,2]
[422635592,1779187847000,-500.0,0.00010061,2]
[422635597,1779187847000,-477.34114189,0.00010061,2]
[422635586,1779187847000,-500.0,9.794e-05,2]
[422635591,1779187847000,-500.0,0.00010061,2]
[422635585,1779187847000,-500.0,9.794e-05,2]
[422635583,1779187847000,-500.0,9.794e-05,2]
[422635587,1779187847000,-10076.1833592,9.797e-05,2]
[422635582,1779187847000,-500.0,9.794e-05,2]
[422635593,1779187847000,-500.0,0.00010061,2]
[422635606,1779187847000,-500.0,0.00010061,2]
[422635607,1779187847000,-500.0,0.00010061,2]
[422635608,1779187847000,-500.0,0.00010061,2]
[422635595,1779187847000,-500.0,0.00010061,2]
[422635590,1779187847000,-501.99257702,0.00010061,2]
[422635594,1779187847000,-500.0,0.00010061,2]
[422635588,1779187847000,-500.0,9.798e-05,2]
[422635589,1779187847000,-210.0,0.0001,2]
[422635596,1779187847000,-500.0,0.00010061,2]
[422635575,1779187847000,-500.0,9.792e-05,2]
[422635634,1779187848000,-500.0,0.00010064,2]
[422635626,1779187848000,-500.0,0.00010061,2]
[422635627,1779187848000,-408.48441511,0.00010061,2]
[422635635,1779187848000,-620.5905274,0.00010064,2]
[422635631,1779187848000,-500.0,0.00010063,2]
[422635636,1779187848000,-502.98556569,0.00010064,2]
[422635629,1779187848000,-501.93610241,0.00010063,2]
[422635628,1779187848000,-500.0,0.00010063,2]
[422635630,1779187848000,-500.0,0.00010063,2]
[422635632,1779187848000,-500.0,0.00010064,2]
[422635637,1779187848000,-501.78580436,0.00010064,2]
[422635638,1779187848000,-500.0,0.00010064,2]
[422635648,1779187848000,-266.86041785,0.00010064,2]
[422635647,1779187848000,-554.43558451,0.00010064,2]
[422635646,1779187848000,-859.75,0.00010064,2]
[422635645,1779187848000,-635.31864929,0.00010064,2]
[422635644,1779187848000,-1213.21,0.00010064,2]
[422635633,1779187848000,-500.0,0.00010064,2]
[422635642,1779187848000,-500.0,0.00010064,2]
[422635639,1779187848000,-501.26156032,0.00010064,2]
[422635641,1779187848000,-501.96735637,0.00010064,2]
[422635640,1779187848000,-500.0,0.00010064,2]
[422635643,1779187848000,-205.302959,0.00010064,2]
[422635664,1779187988000,162.36431,4.61e-05,2]
[422635665,1779187992000,210.559266,0.00015,30]
[422635669,1779188162000,160.0,0.00015,30]
[422635671,1779188387000,152.0,0.00015896,30]
[422635672,1779188406000,152.0,0.00015845,30]
[422635828,1779189038000,-500.0,9.585e-05,2]
[422635824,1779189038000,-300.0,9.585e-05,2]
[422635826,1779189038000,-500.0,9.585e-05,2]
[422635821,1779189038000,-163.48251496,8.427e-05,2]
[422635823,1779189038000,-151.0,9.099e-05,2]
[422635822,1779189038000,-162.36431,9.039e-05,2]
[422635818,1779189038000,-1449.31833637,7.6e-05,2]
[422635820,1779189038000,-163.48251496,8.174e-05,2]
[422635819,1779189038000,-239.70402408,8.144e-05,2]
[422635827,1779189038000,-500.0,9.585e-05,2]
[422635825,1779189038000,-1200.0,9.585e-05,2]
[422635829,1779189039000,-247.34670986,9.585e-05,2]
[422635831,1779189039000,-10415.05454595,9.586e-05,2]
[422635830,1779189039000,-500.74632693,9.585e-05,2]
[422635851,1779189041000,-1525.57541363,9.586e-05,2]
[422635853,1779189041000,-841.52588397,9.586e-05,2]
[422635858,1779189041000,-23486.55009161,9.586e-05,2]
[422635849,1779189041000,-6855.87471478,9.586e-05,2]
[422635898,1779189043000,-453.0,9.586e-05,2]
[422635897,1779189043000,-10342.34652909,9.586e-05,2]
[422635894,1779189043000,-617.46398293,9.586e-05,2]
[422635896,1779189043000,-2306.14853391,9.586e-05,2]
[422635895,1779189043000,-652.25,9.586e-05,2]
[422635913,1779189047000,-15336.04182989,9.586e-05,2]
[422635914,1779189047000,-6612.14541925,9.586e-05,2]
[422635912,1779189047000,-984.7182516,9.586e-05,2]
[422635929,1779189332000,1500.0,0.0001,30]
[422635930,1779189363000,152.0,0.00015846,30]
[422635933,1779189608000,1500.0,0.0001,30]
[422635998,1779190231000,-500.0,9.483e-05,2]
[422635996,1779190231000,-500.0,9.483e-05,2]
[422635982,1779190231000,-300.0,9.48e-05,2]
[422635994,1779190231000,-500.0,9.483e-05,2]
[422635980,1779190231000,-300.0,9.48e-05,2]
[422635986,1779190231000,-300.0,9.482e-05,2]
[422635992,1779190231000,-500.0,9.483e-05,2]
[422635975,1779190231000,-244.85219602,9.213e-05,2]
[422635984,1779190231000,-1200.0,9.48e-05,2]
[422635990,1779190231000,-500.0,9.483e-05,2]
[422635978,1779190231000,-300.0,9.48e-05,2]
[422635976,1779190231000,-1200.0,9.48e-05,2]
[422635988,1779190231000,-221.01231574,9.482e-05,2]
[422635972,1779190231000,-3606.37378189,9.123e-05,2]
[422635970,1779190231000,-908.06644971,9.123e-05,2]
[422636000,1779190231000,-500.0,9.483e-05,2]
[422636004,1779190231000,-1112.11,9.483e-05,2]
[422636023,1779190231000,-500.0,9.483e-05,2]
[422636002,1779190231000,-500.0,9.483e-05,2]
[422636010,1779190231000,-7022.31,9.483e-05,2]
[422636034,1779190231000,-1101.39,9.483e-05,2]
[422636030,1779190231000,-500.0,9.483e-05,2]
[422636032,1779190231000,-500.0,9.483e-05,2]
[422636038,1779190231000,-500.0,9.483e-05,2]
[422636028,1779190231000,-500.0,9.483e-05,2]
[422636036,1779190231000,-624.77,9.483e-05,2]
[422636025,1779190231000,-500.0,9.483e-05,2]
[422636026,1779190231000,-500.0,9.483e-05,2]
[422636019,1779190231000,-622.13,9.483e-05,2]
[422636022,1779190231000,-500.0,9.483e-05,2]
[422636008,1779190231000,-500.0,9.483e-05,2]
[422636014,1779190231000,-500.0,9.483e-05,2]
[422636006,1779190231000,-788.11,9.483e-05,2]
[422636016,1779190231000,-1357.04,9.483e-05,2]
[422636018,1779190231000,-840.47,9.483e-05,2]
[422636012,1779190231000,-500.0,9.483e-05,2]
[422636077,1779190232000,-783.0577458,9.484e-05,2]
[422636090,1779190232000,-783.0577458,9.484e-05,2]
[422636092,1779190232000,-548.46015878,9.484e-05,2]
[422636094,1779190232000,-234.59758702,9.484e-05,2]
[422636097,1779190232000,-783.0577458,9.484e-05,2]
[422636109,1779190232000,-841.78707672,9.484e-05,2]
[422636107,1779190232000,-841.78707672,9.484e-05,2]
[422636099,1779190232000,-783.0577458,9.484e-05,2]
[422636103,1779190232000,-362.09860788,9.484e-05,2]
[422636083,1779190232000,-783.0577458,9.484e-05,2]
[422636111,1779190232000,-841.78707672,9.484e-05,2]
[422636113,1779190232000,-206.19366718,9.484e-05,2]
[422636116,1779190232000,-635.59340954,9.484e-05,2]
[422636118,1779190232000,-841.78707672,9.484e-05,2]
[422636130,1779190232000,-500.0,9.484e-05,2]
[422636131,1779190232000,-500.0,9.484e-05,2]
[422636101,1779190232000,-194.14963443,9.484e-05,2]
[422636105,1779190232000,-479.68846884,9.484e-05,2]
[422636073,1779190232000,-783.0577458,9.484e-05,2]
[422636079,1779190232000,-783.0577458,9.484e-05,2]
[422636042,1779190232000,-500.0,9.483e-05,2]
[422636040,1779190232000,-500.0,9.483e-05,2]
[422636043,1779190232000,-500.0,9.483e-05,2]
[422636046,1779190232000,-500.0,9.483e-05,2]
[422636048,1779190232000,-166.76412478,9.483e-05,2]
[422636049,1779190232000,-500.0,9.483e-05,2]
[422636061,1779190232000,-197.130996,9.483e-05,2]
[422636065,1779190232000,-500.0,9.484e-05,2]
[422636085,1779190232000,-783.0577458,9.484e-05,2]
[422636063,1779190232000,-500.0,9.483e-05,2]
[422636052,1779190232000,-500.0,9.483e-05,2]
[422636057,1779190232000,-948.67,9.483e-05,2]
[422636059,1779190232000,-500.0,9.483e-05,2]
[422636053,1779190232000,-500.0,9.483e-05,2]
[422636067,1779190232000,-783.0577458,9.484e-05,2]
[422636069,1779190232000,-783.0577458,9.484e-05,2]
[422636132,1779190232000,-500.0,9.484e-05,2]
[422636076,1779190232000,-783.0577458,9.484e-05,2]
[422636056,1779190232000,-1118.34,9.483e-05,2]
[422636119,1779190232000,-841.78707672,9.484e-05,2]
[422636071,1779190232000,-337.08287466,9.484e-05,2]
[422636125,1779190232000,-841.78707672,9.484e-05,2]
[422636151,1779190232000,-500.0,9.484e-05,2]
[422636155,1779190232000,-725.0291,9.484e-05,2]
[422636156,1779190232000,-500.0,9.484e-05,2]
[422636154,1779190232000,-500.0,9.484e-05,2]
[422636153,1779190232000,-500.0,9.484e-05,2]
[422636158,1779190232000,-500.0,9.484e-05,2]
[422636157,1779190232000,-500.0,9.484e-05,2]
[422636160,1779190232000,-501.88626111,9.484e-05,2]
[422636152,1779190232000,-500.0,9.484e-05,2]
[422636159,1779190232000,-500.0,9.484e-05,2]
[422636166,1779190232000,-1006.81783792,9.485e-05,2]
[422636164,1779190232000,-1958.82656488,9.485e-05,2]
[422636162,1779190232000,-565.18865846,9.484e-05,2]
[422636163,1779190232000,-604.37665121,9.484e-05,2]
[422636165,1779190232000,-2167.19413998,9.485e-05,2]
[422636167,1779190232000,-546.62223151,9.485e-05,2]
[422636168,1779190232000,-438.23496928,9.485e-05,2]
[422636123,1779190232000,-841.78707672,9.484e-05,2]
[422636161,1779190232000,-500.0,9.484e-05,2]
[422636150,1779190232000,-500.0,9.484e-05,2]
[422636081,1779190232000,-783.0577458,9.484e-05,2]
[422636147,1779190232000,-500.0,9.484e-05,2]
[422636127,1779190232000,-1050.87612483,9.484e-05,2]